[Event "21th IPCA World Individual Chp."]
[Site "followchess.com"]
[Date "2022.05.13"]
[Round "5"]
[White "Mekus, Manuela"]
[Black "Aleksandrova, Aleksandra"]
[Result "1/2-1/2"]
[WhiteElo "1644"]
[BlackElo "1687"]
[ECO "A07"]
[WhiteFed "GER"]
[BlackFed "ISR"]
[FCGameId "1373698633"]
[WhiteFideId "16202562"]
[BlackFideId "4144198"]
[TimeControl "5400+30"]

1. Nf3 d5 {[%clk 1:28:23]} 2. g3 {[%clk 1:31:11]} Nd7 {[%clk 1:27:53]} 3. Bg2 
{[%clk 1:31:21]} e5 {[%clk 1:28:00]} 4. d3 {[%clk 1:31:35]} c6 {[%clk 1:27:52]} 
5. O-O {[%clk 1:30:45]} Be7 {[%clk 1:27:30]} 6. e4 {[%clk 1:30:18]} dxe4 
{[%clk 1:25:37]} 7. dxe4 {[%clk 1:30:33]} Ngf6 {[%clk 1:25:51]} 8. Nc3 
{[%clk 1:30:15]} b5 {[%clk 1:24:42]} 9. Nd2 {[%clk 1:17:02]} h5 {[%clk 1:21:25]} 
10. f4 {[%clk 1:09:09]} Qb6+ {[%clk 1:20:28]} 11. Kh1 {[%clk 1:09:30]} Ng4 
{[%clk 1:19:10]} 12. Qe2 {[%clk 1:07:33]} Ne3 {[%clk 1:17:12]} 13. Rf3 
{[%clk 1:06:29]} Nxc2 {[%clk 1:13:10]} 14. Nc4 {[%clk 1:05:56]} Qc5 
{[%clk 0:50:20]} 15. Qxc2 {[%clk 1:00:16]} Qxc4 {[%clk 0:50:10]} 16. f5 b4 17. 
Bf1 {[%clk 0:55:59]} Qc5 {[%clk 0:26:25]} 18. Be3 {[%clk 0:55:46]} Qa5 
{[%clk 0:26:45]} 19. Nd1 {[%clk 0:54:02]} Bb7 {[%clk 0:24:22]} 20. Bd2 
{[%clk 0:20:56]} c5 {[%clk 0:21:38]} 21. Nf2 {[%clk 0:17:18]} Nf6 
{[%clk 0:18:07]} 22. Bc4 {[%clk 0:13:07]} Rd8 {[%clk 0:14:01]} 23. Bd3 
{[%clk 0:10:57]} Rd4 {[%clk 0:04:07]} 24. Be3 {[%clk 0:10:16]} Rd7 
{[%clk 0:03:21]} 25. b3 {[%clk 0:10:21]} O-O {[%clk 0:02:56]} 26. Kg1 
{[%clk 0:07:07]} Rfd8 {[%clk 0:03:20]} 27. Bc4 {[%clk 0:05:20]} Qc7 
{[%clk 0:02:09]} 28. Re1 {[%clk 0:05:14]} Qb8 {[%clk 0:02:11]} 29. Bb5 
{[%clk 0:05:11]} Bxe4 {[%clk 0:01:48]} 30. Nxe4 {[%clk 0:04:59]} Qxb5 
{[%clk 0:02:16]} 31. Nf2 {[%clk 0:02:24]} Qc6 {[%clk 0:01:52]} 32. Qe2 
{[%clk 0:02:20]} Ng4 {[%clk 0:01:23]} 33. Nxg4 {[%clk 0:02:24]} hxg4 
{[%clk 0:01:52]} 34. Rf2 {[%clk 0:02:44]} Qe4 {[%clk 0:01:33]} 35. Qb5 
{[%clk 0:01:50]} Rd1 {[%clk 0:01:35]} 36. Qe2 {[%clk 0:01:58]} Rxe1+ 
{[%clk 0:01:26]} 37. Qxe1 {[%clk 0:02:21]} Bg5 {[%clk 0:01:33]} 38. Re2 
{[%clk 0:02:27]} Bxe3+ {[%clk 0:01:42]} 39. Rxe3 {[%clk 0:02:56]} Qd4 
{[%clk 0:01:33]} 40. Kh1 {[%clk 0:02:57]} f6 {[%clk 0:01:17]} 41. Qf2 
{[%clk 0:02:16]} Qd1+ {[%clk 0:01:21]} 42. Re1 {[%clk 0:02:14]} Qd5+ 
{[%clk 0:01:30]} 43. Kg1 {[%clk 0:02:21]} Kf7 {[%clk 0:01:35]} 44. Qe2 
{[%clk 0:02:21]} Qd3 {[%clk 0:01:28]} 45. Qxg4 {[%clk 0:02:21]} Qd4+ 
{[%clk 0:00:56]} 46. Qxd4 {[%clk 0:02:19]} exd4 {[%clk 0:01:25]} 47. Kf2 
{[%clk 0:02:35]} Rd5 {[%clk 0:01:19]} 48. g4 {[%clk 0:02:50]} Re5 
{[%clk 0:01:13]} 49. Rc1 {[%clk 0:02:58]} g6 {[%clk 0:01:26]} 50. fxg6+ 
{[%clk 0:03:17]} Kxg6 {[%clk 0:01:54]} 51. h3 {[%clk 0:03:30]} Kg5 
{[%clk 0:02:19]} 52. Kg3 {[%clk 0:03:39]} Re3+ {[%clk 0:02:12]} 53. Kg2 
{[%clk 0:03:53]} Rc3 {[%clk 0:02:06]} 54. Rd1 {[%clk 0:03:42]} Rc2+ 
{[%clk 0:02:14]} 55. Kg3 {[%clk 0:04:11]} Rxa2 {[%clk 0:01:50]} 56. h4+ 
{[%clk 0:04:36]} Kg6 {[%clk 0:01:37]} 57. Rc1 {[%clk 0:04:57]} Ra5 
{[%clk 0:01:16]} 58. Kf4 {[%clk 0:05:16]} Rb5 {[%clk 0:01:13]} 59. Rd1 
{[%clk 0:05:09]} a5 {[%clk 0:01:21]} 60. Ra1 {[%clk 0:05:13]} c4 
{[%clk 0:00:45]} 61. bxc4 {[%clk 0:05:22]} Rc5 {[%clk 0:01:15]} 62. Ke4 
{[%clk 0:05:43]} Rxc4 {[%clk 0:01:03]} 63. Rxa5 {[%clk 0:05:59]} d3+ 
{[%clk 0:00:52]} 64. Kxd3 {[%clk 0:06:07]} Rxg4 {[%clk 0:01:11]} 65. h5+ 
{[%clk 0:06:24]} Kh6 {[%clk 0:01:08]} 66. Rb5 {[%clk 0:06:25]} Rg3+ 
{[%clk 0:00:57]} 67. Ke4 {[%clk 0:04:57]} Rg5 {[%clk 0:00:46]} 68. Rb6 
{[%clk 0:05:07]} Rg4+ {[%clk 0:00:45]} 69. Kf3 {[%clk 0:04:47]} Kxh5 
{[%clk 0:00:38]} 70. Rxf6 {[%clk 0:04:50]} Rg1 {[%clk 0:00:48]} 71. Rb6 
{[%clk 0:04:51]} 1/2-1/2

[Event "21th IPCA World Individual Chp."]
[Site "followchess.com"]
[Date "2022.05.13"]
[Round "5"]
[White "Pilimon, Zbigniew"]
[Black "Freiberg, Doron"]
[Result "0-1"]
[WhiteElo "1620"]
[BlackElo "1244"]
[ECO "D06"]
[WhiteFed "POL"]
[BlackFed "ISR"]
[FCGameId "-1581369373"]
[WhiteFideId "1110489"]
[BlackFideId "2841312"]
[TimeControl "5400+30"]

1. d4 {[%clk 1:30:54]} Nf6 {[%clk 1:28:31]} 2. c4 {[%clk 1:31:09]} d5 
{[%clk 1:28:43]} 3. cxd5 {[%clk 1:30:47]} Qxd5 {[%clk 1:25:35]} 4. Nc3 
{[%clk 1:30:59]} Qa5 {[%clk 1:20:52]} 5. e3 {[%clk 1:27:19]} Ne4 
{[%clk 1:16:58]} 6. Qc2 {[%clk 1:27:13]} Bf5 {[%clk 1:11:33]} 7. Bd3 
{[%clk 1:27:04]} Nd6 {[%clk 1:11:17]} 8. Ne2 {[%clk 1:25:51]} Bxd3 
{[%clk 1:10:34]} 9. Qxd3 {[%clk 1:26:12]} Nc6 {[%clk 1:07:30]} 10. O-O 
{[%clk 1:24:51]} g6 {[%clk 0:59:15]} 11. e4 {[%clk 1:24:25]} Bg7 
{[%clk 0:49:35]} 12. Be3 {[%clk 1:24:26]} Nb4 {[%clk 0:43:30]} 13. Qd1 
{[%clk 1:24:25]} O-O {[%clk 0:38:38]} 14. a3 {[%clk 1:24:08]} Nc6 
{[%clk 0:36:34]} 15. Qd3 {[%clk 1:21:06]} b5 16. Nd5 {[%clk 1:17:15]} Rac8 
{[%clk 0:22:53]} 17. b3 {[%clk 1:14:15]} e6 {[%clk 0:20:58]} 18. Rfc1 
{[%clk 1:12:23]} exd5 19. Rxc6 {[%clk 1:12:01]} dxe4 {[%clk 0:13:39]} 20. Qc2 
{[%clk 1:11:58]} b4 {[%clk 0:12:40]} 21. axb4 {[%clk 1:11:42]} Qxa1+ 
{[%clk 0:12:30]} 22. Bc1 {[%clk 1:08:18]} Bh6 {[%clk 0:09:55]} 23. Rc5 
{[%clk 1:05:38]} Bxc1 {[%clk 0:09:21]} 24. Qxc1 {[%clk 1:04:12]} Qxc1+ 
{[%clk 0:09:45]} 25. Rxc1 {[%clk 1:04:17]} Nb5 {[%clk 0:09:30]} 26. g3 
{[%clk 0:58:20]} Rfd8 {[%clk 0:09:25]} 27. Rc4 {[%clk 0:58:12]} g5 
{[%clk 0:08:38]} 28. Kg2 {[%clk 0:56:00]} Rd7 {[%clk 0:08:51]} 29. g4 
{[%clk 0:55:11]} Rcd8 {[%clk 0:08:56]} 30. d5 {[%clk 0:54:44]} Rxd5 
{[%clk 0:08:58]} 31. Rxe4 {[%clk 0:55:02]} Nd6 {[%clk 0:08:28]} 32. Re7 
{[%clk 0:54:02]} Nb5 {[%clk 0:07:57]} 33. Ng3 {[%clk 0:54:03]} R5d7 
{[%clk 0:08:00]} 34. Re5 {[%clk 0:53:55]} Rd5 {[%clk 0:08:12]} 35. Re4 
{[%clk 0:51:49]} Rd4 {[%clk 0:07:45]} 36. Re5 {[%clk 0:51:15]} R4d5 
{[%clk 0:08:09]} 37. Re4 {[%clk 0:51:24]} f6 {[%clk 0:07:31]} 38. Nf5 
{[%clk 0:51:36]} Re5 {[%clk 0:06:15]} 39. Rc4 {[%clk 0:50:28]} Rd7 
{[%clk 0:05:24]} 40. h3 {[%clk 0:50:30]} Nd6 {[%clk 0:05:20]} 41. Rd4 
{[%clk 0:49:57]} Kf7 {[%clk 0:05:15]} 42. Ne3 {[%clk 0:49:03]} Re4 
{[%clk 0:05:15]} 43. Rd5 {[%clk 0:47:45]} Rxb4 {[%clk 0:05:20]} 44. Rd3 
{[%clk 0:47:25]} Rd8 {[%clk 0:04:21]} 45. Nd5 {[%clk 0:45:46]} Rb7 
{[%clk 0:04:20]} 46. Rf3 {[%clk 0:45:15]} Ne4 {[%clk 0:03:53]} 47. Re3 
{[%clk 0:44:39]} Rxd5 {[%clk 0:04:20]} 48. Rxe4 {[%clk 0:44:41]} Rxb3 
{[%clk 0:04:44]} 49. Rc4 c5 50. Ra4 {[%clk 0:43:50]} Rd7 {[%clk 0:05:12]} 51. 
Ra1 {[%clk 0:43:34]} c4 {[%clk 0:05:39]} 52. f3 {[%clk 0:42:43]} c3 
{[%clk 0:06:05]} 53. Kg3 {[%clk 0:42:12]} Rc7 {[%clk 0:05:59]} 54. h4 
{[%clk 0:42:24]} gxh4+ 55. Kxh4 {[%clk 0:42:38]} c2 {[%clk 0:06:23]} 0-1

[Event "21th IPCA World Individual Chp."]
[Site "followchess.com"]
[Date "2022.05.13"]
[Round "5"]
[White "Klein, Djimmy"]
[Black "Volodarsky, Michael"]
[Result "1-0"]
[WhiteElo "1392"]
[BlackElo "1400"]
[ECO "D02"]
[WhiteFed "FRA"]
[BlackFed "ISR"]
[FCGameId "399308360"]
[WhiteFideId "20669445"]
[BlackFideId "2814366"]
[TimeControl "5400+30"]

1. d4 {[%clk 1:30:55]} d5 {[%clk 1:30:54]} 2. Nf3 {[%clk 1:31:19]} Nf6 
{[%clk 1:31:01]} 3. g3 {[%clk 1:31:42]} b6 {[%clk 1:31:03]} 4. Bg2 
{[%clk 1:31:31]} Bb7 {[%clk 1:31:31]} 5. O-O {[%clk 1:31:45]} e6 
{[%clk 1:31:52]} 6. c4 {[%clk 1:31:15]} Be7 {[%clk 1:29:44]} 7. Qc2 
{[%clk 1:30:49]} O-O {[%clk 1:29:44]} 8. Nc3 {[%clk 1:29:08]} Nbd7 
{[%clk 1:25:58]} 9. Bf4 {[%clk 1:26:08]} a6 {[%clk 1:23:45]} 10. a3 dxc4 11. e4 
Nh5 12. Be3 g6 13. e5 {[%clk 1:13:03]} f5 {[%clk 1:02:57]} 14. Rad1 
{[%clk 1:01:17]} c6 {[%clk 1:01:59]} 15. Qd2 {[%clk 0:56:28]} Rb8 
{[%clk 0:52:14]} 16. Bh6 {[%clk 0:54:21]} Rf7 {[%clk 0:50:23]} 17. Ng5 Bxg5 18. 
Bxg5 {[%clk 0:50:17]} Qf8 19. Ne2 {[%clk 0:46:33]} b5 20. Bh6 {[%clk 0:44:23]} 
Qe8 21. Bf3 {[%clk 0:42:42]} Ng7 22. Nf4 Nb6 {[%clk 0:45:24]} 23. h4 
{[%clk 0:41:30]} Nd5 24. h5 Nxf4 {[%clk 0:42:04]} 25. Qxf4 {[%clk 0:40:21]} Qe7 
26. Bg5 Qf8 27. hxg6 {[%clk 0:38:26]} hxg6 28. Bf6 {[%clk 0:34:04]} c5 29. Kg2 
{[%clk 0:34:11]} Bxf3+ 30. Kxf3 Nh5 31. Rh1 Rxf6 32. Rxh5 gxh5 33. exf6 Rd8 34. 
Qg5+ Kf7 35. Rh1 Ke8 36. Rxh5 {[%clk 0:27:55]} cxd4 37. Rh7 Rd7 38. Qh5+ 
{[%clk 0:22:53]} Rf7 39. Rh8 {[%clk 0:23:06]} Kd7 40. Rxf8 {[%clk 0:22:33]} Rxf8 
{[%clk 0:09:58]} 41. Qg6 {[%clk 0:22:25]} Kd6 42. Qg7 Rd8 43. f7 Rc8 
{[%clk 0:09:48]} 44. f8=Q+ {[%clk 0:20:42]} 1-0

[Event "21th IPCA World Individual Chp."]
[Site "followchess.com"]
[Date "2022.05.12"]
[Round "4"]
[White "Mikheev, Stanislav"]
[Black "Obodchuk, Andrei"]
[Result "0-1"]
[WhiteElo "2333"]
[BlackElo "2295"]
[ECO "E04"]
[WhiteFed "SRB"]
[BlackFed "RUS"]
[FCGameId "-403530879"]
[WhiteFideId "4135920"]
[BlackFideId "4114310"]
[TimeControl "5400+30"]

1. d4 {[%clk 1:30:58]} Nf6 {[%clk 1:30:12]} 2. c4 {[%clk 1:31:20]} e6 
{[%clk 1:30:39]} 3. Nf3 {[%clk 1:31:33]} d5 {[%clk 1:31:01]} 4. g3 
{[%clk 1:31:21]} dxc4 {[%clk 1:31:23]} 5. Bg2 {[%clk 1:30:24]} c6 
{[%clk 1:31:39]} 6. Ne5 {[%clk 1:29:55]} Bb4+ {[%clk 1:31:57]} 7. Bd2 
{[%clk 1:24:43]} Be7 {[%clk 1:32:20]} 8. e3 {[%clk 1:22:41]} b5 {[%clk 1:32:12]} 
9. a4 {[%clk 1:18:57]} b4 {[%clk 1:32:03]} 10. Nxc4 {[%clk 1:16:02]} Ba6 
{[%clk 1:32:01]} 11. Qc2 {[%clk 1:14:04]} O-O {[%clk 1:20:14]} 12. O-O 
{[%clk 1:10:38]} Nbd7 {[%clk 1:19:48]} 13. Rd1 {[%clk 1:10:10]} Rc8 
{[%clk 1:16:10]} 14. e4 {[%clk 1:04:59]} Nb6 {[%clk 1:10:03]} 15. Nxb6 
{[%clk 1:01:19]} Qxb6 {[%clk 1:10:21]} 16. Be3 {[%clk 1:01:13]} Ng4 
{[%clk 1:01:00]} 17. Bf4 {[%clk 1:00:42]} c5 18. a5 {[%clk 0:56:19]} Qb5 
{[%clk 0:51:33]} 19. d5 {[%clk 0:55:40]} e5 20. Bh3 {[%clk 0:46:43]} Nxh2 
{[%clk 0:42:57]} 21. Kxh2 {[%clk 0:46:09]} exf4 {[%clk 0:43:19]} 22. gxf4 
{[%clk 0:45:04]} Rce8 {[%clk 0:36:15]} 23. d6 {[%clk 0:39:08]} Bd8 
{[%clk 0:36:14]} 24. b3 {[%clk 0:33:54]} Bf6 {[%clk 0:30:48]} 25. e5 
{[%clk 0:33:35]} Rxe5 {[%clk 0:30:58]} 26. fxe5 {[%clk 0:29:24]} Bxe5+ 
{[%clk 0:31:22]} 27. Kg1 {[%clk 0:29:36]} Bxa1 {[%clk 0:31:44]} 28. Nd2 
{[%clk 0:29:28]} Bd4 {[%clk 0:28:51]} 29. Nf3 {[%clk 0:27:31]} Qxa5 
{[%clk 0:26:54]} 30. Nxd4 {[%clk 0:27:17]} cxd4 {[%clk 0:27:18]} 31. Rxd4 
{[%clk 0:27:35]} Qg5+ {[%clk 0:25:52]} 32. Rg4 {[%clk 0:26:10]} Qh6 
{[%clk 0:25:49]} 33. Qc5 {[%clk 0:15:32]} Bc8 {[%clk 0:24:40]} 34. Rh4 
{[%clk 0:11:09]} Qxh4 {[%clk 0:24:50]} 35. Bxc8 {[%clk 0:11:31]} h6 
{[%clk 0:24:51]} 36. Qc7 {[%clk 0:10:00]} Qg5+ {[%clk 0:23:04]} 37. Kh1 
{[%clk 0:09:31]} Qd5+ {[%clk 0:23:18]} 38. Kg1 {[%clk 0:09:52]} Qxb3 
{[%clk 0:23:20]} 39. Ba6 {[%clk 0:09:49]} Qd1+ {[%clk 0:23:12]} 40. Kg2 
{[%clk 0:09:45]} b3 {[%clk 0:22:54]} 41. Bc4 {[%clk 0:09:13]} b2 
{[%clk 0:22:47]} 0-1

[Event "21th IPCA World Individual Chp."]
[Site "followchess.com"]
[Date "2022.05.12"]
[Round "4"]
[White "Gurbanov, Andrei"]
[Black "Zilberman, Yaacov"]
[Result "1/2-1/2"]
[WhiteElo "2302"]
[BlackElo "2315"]
[ECO "A56"]
[WhiteFed "ISR"]
[BlackFed "ISR"]
[FCGameId "963153972"]
[WhiteFideId "13503391"]
[BlackFideId "2801612"]
[TimeControl "5400+30"]

1. d4 {[%clk 1:30:25]} Nf6 {[%clk 1:30:43]} 2. c4 {[%clk 1:30:29]} c5 
{[%clk 1:30:56]} 3. d5 {[%clk 1:30:46]} e5 {[%clk 1:31:18]} 4. Nc3 
{[%clk 1:30:30]} d6 {[%clk 1:31:32]} 5. e4 {[%clk 1:30:51]} Be7 {[%clk 1:31:38]} 
6. h3 {[%clk 1:30:42]} h5 {[%clk 1:29:55]} 7. Be3 {[%clk 1:29:27]} Nbd7 
{[%clk 1:29:42]} 8. Nf3 {[%clk 1:28:55]} Nf8 {[%clk 1:28:44]} 9. Qd2 
{[%clk 1:28:42]} h4 {[%clk 1:27:43]} 10. O-O-O {[%clk 1:28:36]} Ng6 
{[%clk 1:27:25]} 11. Kb1 {[%clk 1:26:16]} Nh5 {[%clk 1:25:10]} 12. Rg1 
{[%clk 1:20:24]} Nhf4 {[%clk 1:21:16]} 13. Rh1 {[%clk 1:05:54]} Bd7 
{[%clk 1:15:16]} 14. Ng1 {[%clk 1:00:34]} a6 {[%clk 1:13:18]} 15. g3 
{[%clk 0:58:12]} Nh5 {[%clk 1:09:29]} 16. g4 {[%clk 0:51:18]} Nhf4 
{[%clk 1:08:49]} 17. Nf3 {[%clk 0:51:23]} Rb8 {[%clk 1:06:13]} 18. a4 
{[%clk 0:50:31]} Qa5 {[%clk 1:02:35]} 19. b3 1/2-1/2

[Event "21th IPCA World Individual Chp."]
[Site "followchess.com"]
[Date "2022.05.12"]
[Round "4"]
[White "Cosic, Radoslav"]
[Black "Yarmonov, Igor"]
[Result "0-1"]
[WhiteElo "2003"]
[BlackElo "2394"]
[ECO "A06"]
[WhiteFed "CRO"]
[BlackFed "UKR"]
[FCGameId "-1204900123"]
[WhiteFideId "14504367"]
[BlackFideId "14114496"]
[TimeControl "5400+30"]

1. Nf3 {[%clk 1:31:16]} d5 {[%clk 1:30:55]} 2. b3 {[%clk 1:31:03]} Nf6 
{[%clk 1:30:45]} 3. Bb2 {[%clk 1:31:25]} e6 {[%clk 1:30:48]} 4. e3 
{[%clk 1:31:47]} Nbd7 {[%clk 1:30:44]} 5. Nc3 {[%clk 1:25:54]} c6 
{[%clk 1:30:58]} 6. Ne2 {[%clk 1:23:50]} Bd6 {[%clk 1:30:33]} 7. Ng3 
{[%clk 1:24:01]} h5 {[%clk 1:30:25]} 8. d3 {[%clk 1:21:02]} h4 {[%clk 1:30:21]} 
9. Ne2 {[%clk 1:21:26]} Qe7 {[%clk 1:29:10]} 10. h3 {[%clk 1:20:05]} e5 
{[%clk 1:29:21]} 11. a3 {[%clk 1:19:58]} a5 {[%clk 1:29:05]} 12. c4 
{[%clk 1:15:52]} dxc4 {[%clk 1:15:21]} 13. bxc4 {[%clk 1:12:54]} a4 
{[%clk 1:14:42]} 14. Nc3 {[%clk 1:08:33]} Nc5 {[%clk 1:14:57]} 15. Nd2 
{[%clk 1:07:35]} O-O {[%clk 1:14:52]} 16. Be2 {[%clk 1:08:03]} Bc7 
{[%clk 1:11:44]} 17. d4 {[%clk 1:04:55]} exd4 {[%clk 1:12:02]} 18. exd4 
{[%clk 1:05:23]} Nd3+ {[%clk 1:11:59]} 19. Kf1 {[%clk 1:05:45]} Nxb2 
{[%clk 1:12:01]} 20. Qc2 {[%clk 1:06:14]} Nxc4 {[%clk 1:11:49]} 21. Bxc4 
{[%clk 1:06:25]} Ba5 {[%clk 1:10:03]} 22. Nf3 {[%clk 1:06:36]} Be6 
{[%clk 1:09:37]} 23. Bxe6 {[%clk 1:05:22]} Qxe6 {[%clk 1:05:06]} 24. Nxa4 
{[%clk 1:04:27]} Rfe8 {[%clk 1:05:06]} 25. Nc5 {[%clk 1:04:05]} Qd5 
{[%clk 1:02:46]} 26. Rb1 {[%clk 0:59:15]} b5 27. Nd3 {[%clk 0:54:23]} Ne4 
{[%clk 1:02:46]} 28. Nde5 {[%clk 0:50:02]} f6 {[%clk 1:00:42]} 29. Nxc6 
{[%clk 0:44:48]} Bc3 {[%clk 0:57:28]} 30. Qb3 {[%clk 0:40:30]} Qxb3 
{[%clk 0:40:33]} 31. Rxb3 {[%clk 0:40:58]} b4 {[%clk 0:39:53]} 32. Nxb4 
{[%clk 0:40:24]} Bxb4 {[%clk 0:36:43]} 33. Rxb4 {[%clk 0:40:03]} Rxa3 
{[%clk 0:37:07]} 34. Kg1 {[%clk 0:40:10]} Ng3 {[%clk 0:36:22]} 35. Rb1 
{[%clk 0:36:45]} Nxh1 {[%clk 0:36:19]} 36. Kxh1 {[%clk 0:37:14]} g5 
{[%clk 0:34:38]} 37. Rd1 {[%clk 0:35:32]} Kf7 {[%clk 0:31:06]} 38. Rd2 
{[%clk 0:33:49]} Kg6 {[%clk 0:31:09]} 39. Kh2 {[%clk 0:33:15]} Kh5 
{[%clk 0:31:04]} 40. Ng1 {[%clk 0:29:13]} f5 {[%clk 0:30:23]} 41. g3 
{[%clk 0:27:12]} hxg3+ {[%clk 0:16:22]} 42. fxg3 {[%clk 0:26:44]} Ree3 
{[%clk 0:12:49]} 43. Ne2 {[%clk 0:27:02]} Kg6 {[%clk 0:12:31]} 44. Kg2 
{[%clk 0:27:15]} Kf6 {[%clk 0:12:46]} 45. Kf2 {[%clk 0:26:46]} Ke7 
{[%clk 0:12:53]} 46. Rb2 {[%clk 0:26:25]} Rf3+ {[%clk 0:13:10]} 47. Kg2 
{[%clk 0:26:37]} Rfb3 {[%clk 0:13:14]} 48. Rc2 {[%clk 0:26:32]} Kd6 
{[%clk 0:13:11]} 49. Kf2 {[%clk 0:26:51]} Rf3+ {[%clk 0:12:04]} 50. Kg2 
{[%clk 0:27:13]} Rfe3 {[%clk 0:12:07]} 51. Kf2 {[%clk 0:27:41]} Re7 
{[%clk 0:12:13]} 52. Rb2 {[%clk 0:27:33]} Rh7 {[%clk 0:11:18]} 53. Kg2 
{[%clk 0:26:44]} Kd5 {[%clk 0:10:11]} 54. Rb5+ {[%clk 0:18:20]} Ke4 
{[%clk 0:10:06]} 55. Re5+ {[%clk 0:18:26]} Kd3 {[%clk 0:10:32]} 56. Ng1 
{[%clk 0:15:43]} Ra2+ {[%clk 0:09:12]} 57. Kf3 {[%clk 0:13:19]} Rf7 
{[%clk 0:09:24]} 58. Re3+ {[%clk 0:11:15]} Kxd4 {[%clk 0:09:23]} 59. Ne2+ 
{[%clk 0:11:44]} Kc4 {[%clk 0:09:19]} 60. Re8 {[%clk 0:11:29]} Ra3+ 
{[%clk 0:09:23]} 61. Kf2 {[%clk 0:11:57]} Kd5 {[%clk 0:07:46]} 62. h4 
{[%clk 0:11:58]} gxh4 {[%clk 0:08:02]} 63. gxh4 {[%clk 0:12:21]} f4 
{[%clk 0:08:08]} 64. Rc8 {[%clk 0:11:23]} Rh3 {[%clk 0:07:56]} 65. h5 
{[%clk 0:11:44]} f3 {[%clk 0:07:02]} 66. Rd8+ {[%clk 0:11:04]} Ke5 
{[%clk 0:06:55]} 67. Re8+ {[%clk 0:10:53]} Kd6 {[%clk 0:07:07]} 68. Nc3 
{[%clk 0:10:44]} Rh2+ {[%clk 0:07:13]} 69. Kg3 {[%clk 0:10:42]} f2 
{[%clk 0:06:07]} 70. Ne4+ {[%clk 0:11:11]} Kd7 {[%clk 0:06:02]} 0-1

[Event "21th IPCA World Individual Chp."]
[Site "followchess.com"]
[Date "2022.05.12"]
[Round "4"]
[White "Valenta, Vit Vaclav"]
[Black "Campos, Eugenio"]
[Result "0-1"]
[WhiteElo "2014"]
[BlackElo "2247"]
[ECO "A00"]
[WhiteFed "CZE"]
[BlackFed "ANG"]
[FCGameId "1202973277"]
[WhiteFideId "307440"]
[BlackFideId "10100156"]
[TimeControl "5400+30"]

1. b4 {[%clk 1:30:57]} Nf6 {[%clk 1:30:43]} 2. Bb2 {[%clk 1:31:19]} e6 
{[%clk 1:31:01]} 3. a3 {[%clk 1:31:44]} Be7 {[%clk 1:31:25]} 4. Nf3 
{[%clk 1:32:04]} O-O {[%clk 1:31:36]} 5. c4 {[%clk 1:32:12]} d6 {[%clk 1:31:14]} 
6. g3 {[%clk 1:32:21]} b6 {[%clk 1:30:51]} 7. Bg2 {[%clk 1:32:45]} Bb7 
{[%clk 1:31:15]} 8. O-O {[%clk 1:32:46]} Nbd7 {[%clk 1:31:31]} 9. d3 
{[%clk 1:32:35]} c5 {[%clk 1:31:30]} 10. e4 {[%clk 1:27:19]} Qc7 
{[%clk 1:30:38]} 11. Nc3 {[%clk 1:19:29]} Rac8 {[%clk 1:30:42]} 12. Re1 
{[%clk 1:19:07]} Rfd8 {[%clk 1:30:57]} 13. Qb3 {[%clk 1:16:03]} Ne5 
{[%clk 1:27:50]} 14. Rad1 {[%clk 1:11:33]} Nfd7 {[%clk 1:26:53]} 15. Ne2 
{[%clk 1:02:06]} Nxf3+ {[%clk 1:24:48]} 16. Bxf3 {[%clk 1:02:33]} Bf6 
{[%clk 1:25:04]} 17. Bg2 {[%clk 1:01:26]} Ne5 {[%clk 1:20:11]} 18. f4 
{[%clk 0:57:21]} Ng4 {[%clk 1:20:16]} 19. Bxf6 {[%clk 0:57:19]} Nxf6 
{[%clk 1:20:34]} 20. Nc3 {[%clk 0:56:03]} a6 {[%clk 1:20:05]} 21. h3 
{[%clk 0:48:40]} cxb4 {[%clk 1:19:54]} 22. axb4 {[%clk 0:49:07]} b5 
{[%clk 1:20:03]} 23. Bf1 {[%clk 0:48:21]} Qb6+ {[%clk 1:15:26]} 24. Kg2 bxc4 
{[%clk 1:03:54]} 25. dxc4 {[%clk 0:43:28]} Nxe4 {[%clk 1:03:58]} 26. Rxe4 
{[%clk 0:42:37]} f5 {[%clk 1:03:55]} 27. Bd3 {[%clk 0:26:06]} Qe3 
{[%clk 1:02:33]} 28. Qc2 {[%clk 0:18:07]} fxe4 {[%clk 1:01:27]} 29. Nxe4 
{[%clk 0:18:30]} d5 0-1